Cogmind - Beta 17.1 @@@ ROGUE MODE // 2026.09.05 @ 18:06:25 Player: s0rry Result: Destroyed by as-23471 with Assembled Rifle Performance ------------- Evolutions (0) 0 Regions Visited (2) 400 Robots Destroyed (9) 45 Value Destroyed (287) 287 Prototype IDs (0) 0 Alien Tech Used (0) 0 Bonus (0) 0 TOTAL SCORE: 732 Bonus ------- None Cogmind --------- Core Integrity 0/250 Matter 298/300 Energy 160/160 System Corruption 0% Temperature Cool (4) Movement Walking (120) Location -10/Mines Parts ------- > --- POWER (1) -------- Light Nuclear Core > --- PROPULSION (2) --- Aluminum Leg Aluminum Leg > --- UTILITY (2) ------ Small Storage Unit Targeting Computer > --- WEAPON (2) ------- Light Assault Rifle Light Assault Rifle > --- INVENTORY (8) ---- Ion Engine Ion Engine Light Ion Engine Light Treads Small Matter Pod (50) Small Laser Small Laser Rocket Launcher Peak State ------------ > --- POWER ------------ Light Nuclear Core > --- PROPULSION ------- Light Treads Light Treads > --- UTILITY ---------- Small Storage Unit Targeting Computer > --- WEAPON ----------- Light Assault Rifle Light Assault Rifle > --- INVENTORY -------- Ion Engine Aluminum Leg Aluminum Leg Medium Laser Small Laser [Rating: 9] Favorites ----------- Power Ion Engine Engine Ion Engine Power Core Light Nuclear Core Propulsion Aluminum Leg Treads Light Treads Leg Aluminum Leg Utility Small Storage Unit Storage Small Storage Unit Processor Targeting Computer Weapon Light Assault Rifle Energy Gun Medium Laser Ballistic Gun Light Assault Rifle Build | -11 -10 -10 ------- Run | Yrd Mat Min Slots Evolved . | . . . Power . | . . . Propulsion . | . . . Utility . | . . . Weapon . | . . . Parts Attached 24 | 6 11 7 Power 5 | 1 4 . Engine 4 | 1 3 . Core 1 | . 1 . Reactor . | . . . Propulsion 5 | 2 2 1 Treads 2 | 2 . . Leg 3 | . 2 1 Wheel . | . . . Hover . | . . . Flight . | . . . Utility 3 | 1 1 1 Device . | . . . Storage 2 | 1 . 1 Processor 1 | . 1 . Hackware . | . . . Protection . | . . . Artifact . | . . . Weapon 11 | 2 4 5 Energy Gun 6 | . 4 2 Energy Cannon . | . . . Ballistic Gun 5 | 2 . 3 Ballistic Cannon . | . . . Launcher . | . . . Special Weapon . | . . . Impact Weapon . | . . . Slashing Weapon . | . . . Piercing Weapon . | . . . Special Melee Weapon . | . . . Unidentified Prototypes . | . . . Parts Lost . | . . . Power . | . . . Propulsion . | . . . Utility . | . . . Weapon . | . . . Highest Loss Streak . | . . . To Critical Strikes . | . . . Average Backups 5 | . 3 7 Power 1 | . . 2 Propulsion 1 | . 1 1 Utility . | . . . Weapon 2 | . 1 3 Tool/Special . | . . . Unused Backups 5 | . 1 4 Power 2 | . . 2 Propulsion . | . . . Utility 1 | . . 1 Weapon 2 | . 1 1 Tool/Special . | . . . Average Slot Usage (%) 96 | . 92 99 Engine 7 | . 8 7 Core 6 | . 6 6 Treads 10 | . 22 . Leg 17 | . 6 28 Storage 14 | . 14 14 Processor 10 | . 7 14 Energy Gun 4 | . 3 6 Ballistic Gun 23 | . 25 21 Peak Build Rating 9 | 6 9 9 Average Rating 7 | 4 7 8 On Entrance 4 | . 6 8 Avg Prop Armor Cover (%) . | . . . Naked Turns . | . . . Heaviest Build 14 | 12 13 14 Greatest Support 40 | 40 40 20 Greatest Overweight (x) . | . . . Average Overweight (x) . | . . . Largest Inventory Capacity 8 | 8 8 8 Average Capacity 7 | 7 8 8 Most Carried 8 | 1 8 8 Average Carried 5 | . 4 7 Final Capacity 8 | 8 8 8 Final Carried 8 | 1 8 8 Class Distribution -------------------- 74% | Mutant 25% | Scavenger-Mutant Dominant Class ---------------- Mutant | -10/Materials Scavenger-Mutant | -10/Mines Resources | -11 -10 -10 ----------- Run | Yrd Mat Min Matter Collected 642 | 206 184 252 Remotely . | . . . Salvage Created 373 | . 224 149 Parts 17 | . 10 7 Haulers Intercepted . | . . . Recyclers Shooed . | . . . Parts Field Recycled . | . . . Retrieved Matter . | . . . Parts Self-Destructed . | . . . Prevented . | . . . Parts Restored . | . . . Kills | -11 -10 -10 ------- Run | Yrd Mat Min Combat Hostiles Destroyed 12 | . 5 7 Guns 12 | . 5 7 Classes Destroyed 4 | . 2 2 Tunneler 1 | . . 1 Watcher 1 | . 1 . Grunt 7 | . 5 2 Assembled 5 | . . 5 Best Kill Streak 3 | . 3 3 Combat Bots Only 3 | . 3 3 Max Kills in Single Turn 1 | . 1 1 Gunslinging . | . . . Exploded . | . . . Melee . | . . . Uniques/NPCs Destroyed . | . . . Combat | -11 -10 -10 -------- Run | Yrd Mat Min Hostile Shots Fired 93 | . 42 51 Missed 20 | . 4 16 Hits 73 | . 38 35 Melee 5 | . . 5 Projectile 68 | . 38 30 Critical Strikes 2 | . . 2 Damage Taken 1043 | . 512 531 Core 253 | . 78 175 Absorbed by Shields . | . . . Core Remaining (%) 100 | 100 . . Volleys Fired 51 | . 26 25 Largest 2 | . 2 2 Hottest 70 | . 70 70 Shots Fired 101 | . 52 49 Gun 101 | . 52 49 Cannon . | . . . Launcher . | . . . Special . | . . . Kinetic 81 | . 42 39 Thermal 20 | . 10 10 Explosive . | . . . Electromagnetic . | . . . Robot Hit Streak 12 | . 12 7 Robot Miss Streak 5 | . 1 5 Penetration Max . | . . . Secondary Targets 1 | . . 1 Max Gunslinging Chain 1 | . . 1 Shots Hit Robots 64 | . 39 25 Core Hits 28 | . 15 13 Critical Kills . | . . . Critical Parts Destroyed . | . . . Critical Strikes 1 | . . 1 Burn 1 | . . 1 Melee Attacks . | . . . Impact . | . . . Slashing . | . . . Piercing . | . . . Sneak Attacks . | . . . Combat Hostiles . | . . . Follow-up Attacks . | . . . Damage Inflicted 662 | . 350 312 Guns 659 | . 350 309 Cannons . | . . . Explosions . | . . . Melee . | . . . Ramming 3 | . . 3 Kinetic 476 | . 250 226 Thermal 183 | . 100 83 Explosive . | . . . Electromagnetic . | . . . Impact . | . . . Slashing . | . . . Piercing . | . . . Highest Corruption . | . . . Average Corruption . | . . . Corruption Purged . | . . . Corruption Blocked . | . . . Overload Shots . | . . . Overflow Damage . | . . . Projectiles . | . . . Explosions . | . . . Melee . | . . . Knockbacks . | . . . Impact . | . . . Kinetic . | . . . Secondary . | . . . Self-Inflicted Damage . | . . . Shots . | . . . Rammed . | . . . Targets Rammed 1 | . . 1 Kicked 1 | . . 1 Crushed . | . . . Highest Temperature 226 | . 226 120 Average Temperature 56 | . 68 40 Received Heat Transfer 369 | . 276 93 Siege Activations . | . . . Martial Activations . | . . . Shielding Activations . | . . . Robots Disrupted . | . . . Combat Hostiles . | . . . Robots Corrupted . | . . . Combat Hostiles . | . . . Parts Fried . | . . . Impact Corruptions . | . . . Robots Melted . | . . . Combat Hostiles . | . . . Parts Melted 1 | . . 1 Heat Transferred 605 | . 296 309 Parts Sabotaged . | . . . Parts Stolen . | . . . Parts Stripped . | . . . Power Chain Reactions . | . . . Alert | -11 -10 -10 ------- Run | Yrd Mat Min Maximum Alert Level . | . . . Low Security (%) 100 | 100 100 100 Level 1 . | . . . Level 2 . | . . . Level 3 . | . . . Level 4 . | . . . Level 5 . | . . . High Security . | . . . Max Security . | . . . Peak Influence 69 | . 69 55 Initial 14 | . . 14 Average 9 | . 13 6 Influence Increases 197 | . 142 55 Destroy 0b10 Robot/C 140 | . 100 40 Destroy 0b10 Robot/NC 10 | . 5 5 Destroy Leader 32 | . 22 10 Partial Spotted 15 | . 15 . Influence Decreases 197 | . 105 92 Entered New Map 23 | . . 23 Time Decay 174 | . 105 69 Squads Dispatched 1 | . 1 . Investigation 1 | . 1 . Extermination . | . . . Reinforcement . | . . . Assault . | . . . Garrison . | . . . Intercept . | . . . Searches Triggered . | . . . Construction Impeded . | . . . Haulers Reinforced . | . . . Active Scanning Responses . | . . . Cargo Convoy Interrupts . | . . . Stealth | -11 -10 -10 --------- Run | Yrd Mat Min Distress Signals . | . . . Communications Jammed . | . . . Distress Signals . | . . . Times Spotted 28 | . 9 19 Peak Tracking Total 12 | . 3 12 Tactical Retreats 3 | . . 3 Traps | -11 -10 -10 ------- Run | Yrd Mat Min Traps Triggered 1 | . 1 . Indirectly . | . . . Trap Hack Attempts . | . . . Triggered . | . . . Disarmed . | . . . Reprogrammed . | . . . Reused . | . . . Traps Extracted . | . . . Installed . | . . . Triggered . | . . . Machines | -11 -10 -10 ---------- Run | Yrd Mat Min Machines Disabled . | . . . Max in Single Turn . | . . . Machines Repaired . | . . . Machines Dismantled . | . . . Machines Sabotaged . | . . . Overloaded Fab Kills . | . . . Hacking | -11 -10 -10 --------- Run | Yrd Mat Min Machines Accessed 1 | . 1 . Terminals 1 | . 1 . Fabricators . | . . . Repair Stations . | . . . Recycling Units . | . . . Scanalyzers . | . . . Garrison Access . | . . . Total Hacks 1 | . 1 . Successful . | . . . Failed 1 | . 1 . Catastrophic . | . . . Database Lockouts . | . . . Manual 1 | . 1 . Terminals 1 | . 1 . Fabricators . | . . . Repair Stations . | . . . Recycling Units . | . . . Scanalyzers . | . . . Garrison Access . | . . . Terminal Hacks . | . . . Fabricator Hacks . | . . . Repair Station Hacks . | . . . Recycling Unit Hacks . | . . . Scanalyzer . | . . . Garrison Access Hacks . | . . . Unauthorized Hacks . | . . . Terminals . | . . . Fabricators . | . . . Repair Stations . | . . . Recycling Units . | . . . Scanalyzers . | . . . Garrison Access . | . . . Data Cores Recovered . | . . . Used . | . . . Hacking Detections . | . . . Full Trace Events . | . . . Feedback Events . | . . . Feedback Blocked . | . . . Robot Schematics Acquired . | . . . Robots Built . | . . . Authchips . | . . . Time . | . . . Total Robot Build Rating . | . . . Part Schematics Acquired . | . . . Parts Built . | . . . Authchips . | . . . Time . | . . . Total Part Build Rating . | . . . Part Studies Acquired . | . . . Parts Repaired . | . . . Time . | . . . Parts Recycled . | . . . Recycled Matter . | . . . Retrieved Matter . | . . . Retrieved Components . | . . . Parts Scanalyzed . | . . . Part Schematics Acquired . | . . . Parts Damaged . | . . . Bothacking | -11 -10 -10 ------------ Run | Yrd Mat Min Used RIF Installer . | . . . Robots Hacked . | . . . Non-combat . | . . . Combat . | . . . Robot Hacks Applied . | . . . Relay Couplers Released . | . . . Fabnet Peak Effective % . | . . . Robots Rewired . | . . . Allies Hacked . | . . . Hacks Repelled . | . . . Allies | -11 -10 -10 -------- Run | Yrd Mat Min Total Allies . | . . . Largest Group . | . . . Highest-Rated Group . | . . . Highest-Rated Ally . | . . . Total Orders . | . . . Ally Attacks . | . . . Total Damage . | . . . Kills . | . . . Allies Corrupted . | . . . Allies Melted . | . . . Intel | -11 -10 -10 ------- Run | Yrd Mat Min Active Infowar (turns) . | . . . Robot Analysis Total . | . . . Derelict Logs Recovered 2 | . . 2 Drone Launches . | . . . Drone Recoveries . | . . . Exploration | -11 -10 -10 ------------- Run | Yrd Mat Min Turns Passed 1188 | 74 548 566 Spaces Moved 715 | 43 292 380 Core 3 | 3 . . Treads 266 | 40 226 . Legs 446 | . 66 380 Wheels . | . . . Hover . | . . . Flight . | . . . Fastest Speed 50 | 50 120 120 Average Speed 134 | 152 150 120 Slowest Speed 160 | 160 160 120 Overloaded Moves . | . . . Propulsion Burnouts . | . . . Robots Hopped . | . . . Potential Cave-ins . | . . . Cave-ins Triggered . | . . . Exploration Rate (%) 28 | 4 40 40 Regions Visited 2 Branch Regions 1 Pre-discovered Areas . | . . . Known Exits Taken . | . . . Unknown Exits Taken 2 | 1 1 . Scrap Searched 1 | . . 1 Spaces Dug . | . . . Terrain Destroyed . | . . . Melee . | . . . Projectile . | . . . AOE . | . . . Terrain Rammed . | . . . Walls Destroyed . | . . . Machines Disabled . | . . . Actions | -11 -10 -10 --------- Run | Yrd Mat Min Total 853 | 49 352 452 Wait 35 | . 16 19 Move 713 | 42 291 380 Hop . | . . . Pick Up 10 | 1 4 5 Fast Attach 7 | 6 1 . Attach 1 | . . 1 Detach . | . . . Swap 21 | . 11 10 Drop 14 | . 3 11 Fire 51 | . 26 25 Melee . | . . . Ram . | . . . Kick 1 | . . 1 Crush . | . . . Escape Stasis . | . . . Rewire . | . . . Trap . | . . . Miscellaneous . | . . . Route ------- -11/Scrapyard -10/Materials (discovered 2 exits: [*Min x2]) -10/Mines (discovered 2 exits: Mat / [*Sub]) History --------- Turn | Location | Event 4 | -11/Scrapyard | Discovered new exit (range 16) 75 | -11/Scrapyard | Entered Materials 310 | -10/Materials | Discovered new exit (range 14) 314 | -10/Materials | Build established: Mutant 588 | -10/Materials | Discovered new exit (range 10) 623 | -10/Materials | Entered Mines 630 | -10/Mines | Received a Rocket Launcher from a helpful Derelict 785 | -10/Mines | Discovered new exit (range 5) 788 | -10/Mines | Core integrity fell below 50% 834 | -10/Mines | Assembled infested the area 839 | -10/Mines | Assisted by a Guerilla fighting off Assembled 840 | -10/Mines | Identified exit to Materials 995 | -10/Mines | Core integrity fell below 20% 1184 | -10/Mines | Build established: Scavenger-Mutant 1189 | -10/Mines | Destroyed by as-23471 with Assembled Rifle Last Messages --------------- 01011_ Acquired 19 matter. 01012_ Acquired 44 matter. 01043_ Dropped Lgt. Treads. 01044_ Acquired Rocket Launcher. 01111_ Dropped Sml. Storage Unit. 01112_ Acquired 10 matter. 01117_ Dropped Assault Rifle. 01119_ Acquired 10 matter. 01121_ Dropped Sml. Laser. 01122_ Acquired Lgt. Ion Engine. 01125_ Dropped Lgt. Ion Engine. 01125_ Acquired Lgt. Ion Engine. 01139_ as-24721 destroyed. 01143_ Acquired 6 matter. 01162_ Kicked R-06 Scavenger out of the way. 01167_ K-01 Serf collects debris. 01167_ U-05 Engineer builds a Wall. 01176_ K-01 Serf collects debris. 01182_ Acquired 2 matter. 01186_ K-01 Serf collects debris. Map ----- +----------------------------------------------------+ | ?????????????????????????????????# #????????????? | | ?????????????????????????????????# ##???????????? | | ????????????????????????????????## ##??????????? | | ?????????????????????????????#### ##?????????? | | ?????????????????????????????? ## #?????? | | ???????????????????????????????? $ ????????# | | ?????????????????????????????????# #??????????## | | ?????????????????????????????????# ##?????????## | | ?????????????????????????????????# #??????????# | | ?????????????????????????????????# #??????????# | | ????????????????????????? ???????# #??????????## | | ????????????????????????? ???????# #???????????## | | ????????????????????????? ????####%#????????????# | | ???????????????????????## ????# #????????????# | | ??????????????????????? ????#[####????????????# | | ??????????????????????? ????#%#???????????????# | | ??????????????????????? ????#%#?????????????### | | ????????????????????#?? < ???#*#??????####?## # | | ????????????????????## #% ???#%#?????## ### | | ????????????????????# ##a######[#????## | | ????????????????????## #%# !=#????# | | ????????????????????## =#!k !%#????# | | ?????????????????????#*!%#=!##=%##???# #### | | ?????????????????????#! *=#= !!* #???## ##??? | | ??????????????????????##%=#|## ###????# ##???? | | ???????????????????????#@##=# ##????## ##????? | | ???????????????????????#==%!## #????#[ ##?????? | | ?????????????????? %!t##### ##????# #????### | | ????????????? %#####???# #?????# #???## | | ????????????# ??????????# #????## #???# | | ????????????# ""?????????????# ###### ##### | | ?????????????????????????????# = | | ?????????????????????????????###### * | | ??????????????????????????????????### ######## | | ????????????????????????????????????####??????### | | ????????????????????????????????????????????????? | | ????????????????????????????????????????????????? | | ????????????????????????????????????????????????? | | | | | | | | | | | | | | | | | | | | | | | | | +----------------------------------------------------+ Best States ------------- Heat Dissipation 25 Energy Generation 14 Energy Capacity 250 Matter Stores 300 Matter Capacity 300 Sight Range 16 Terrain Scan Density 10 Evasion (%) 55 Targeting Accuracy 5 Recoil Reduction 2 Item Schematics ----------------- None Robot Schematics ------------------ None Fabricated ------------ Nothing Repaired ---------- Nothing Studied --------- None Alien Tech Used ----------------- None Achievements -------------- None Challenges ------------ None Game ------ Seed SniperBiomechanicalMediator Manual? 0 Play Time 00:18:34 Cumulative 16.7 hours Start 2026.09.05 @ 17:48:50 End 2026.09.05 @ 18:06:25 Sessions 1 Manual Loads 0 Difficulty Rogue Special Mode None Game No. 23 Rogue 23 Adventurer 0 Explorer 0 Win Type - Total 0 Types 0/0/0/0/0/0/0/0/0/0 Lore% 12 Gallery% 13 Achievement% 11 Wizard Run 0 Options --------- Layout 0 ASCII 0 Keyboard 0 Movement Mouse Keybinds 0 Fullscreen 2 Font 20/SmallcapsGlow Map View 48x30 Zoom Use 66% Tactical HUD 1 Map Filters NONE Filters NONE Steam 1 RUN: 1a880100-9c04-4d9f-8cf8-85b80f39f14c